fUST/lending_fUST_20250810
["ID","MTS","AMOUNT","RATE_DAILY","PERIOD"]
[378359614,1754837448487,-460.0,0.00021349,2]
[378359616,1754837448496,-466.79815138,0.00021349,2]
[378359618,1754837448506,-462.77576942,0.00021349,2]
[378359620,1754837448515,-460.0,0.00021349,2]
[378359622,1754837448525,-361.57128903,0.00021349,2]
[378359624,1754837448534,-460.0,0.00021349,2]
[378359626,1754837448543,-460.0,0.00021349,2]
[378359628,1754837448552,-460.0,0.00021349,2]
[378359630,1754837448562,-460.0,0.00021349,2]
[378359632,1754837448571,-460.0,0.00021349,2]
[378359634,1754837448580,-460.0,0.00021349,2]
[378359636,1754837448590,-460.0,0.00021349,2]
[378359638,1754837448599,-460.0,0.00021349,2]
[378359640,1754837448608,-460.0,0.00021349,2]
[378359642,1754837448619,-460.0,0.00021349,2]
[378359644,1754837448628,-460.0,0.00021349,2]
[378359646,1754837448638,-460.0,0.00021349,2]
[378359648,1754837448647,-460.0,0.00021349,2]
[378359650,1754837448657,-460.0,0.00021349,2]
[378359652,1754837448667,-460.0,0.00021349,2]
[378359654,1754837448676,-464.33675137,0.00021349,2]
[378359656,1754837448686,-152.97743756,0.00021349,2]
[378359658,1754837448697,-460.0,0.00021349,2]
[378359660,1754837448706,-460.0,0.00021349,2]
[378359662,1754837448716,-460.0,0.00021349,2]
[378359664,1754837448726,-460.0,0.00021349,2]
[378359666,1754837448735,-465.82,0.00021349,2]
[378359668,1754837448745,-744.56,0.00021349,2]
[378359670,1754837448754,-526.01,0.00021349,2]
[378359672,1754837448764,-460.0,0.0002136,2]
[378359674,1754837448774,-903.81,0.00021362,2]
[378359676,1754837448784,-460.0,0.00021363,2]
[378359678,1754837448793,-169.89,0.00021363,2]
[378359680,1754837448803,-460.0,0.00021363,2]
[378359682,1754837448814,-475.03,0.00021363,2]
[378359684,1754837448823,-460.0,0.00021363,2]
[378359686,1754837448833,-3079.07,0.00021363,2]
[378359688,1754837448842,-629.31,0.00021363,2]
[378359690,1754837448852,-1082.06,0.00021363,2]
[378359692,1754837448861,-500.0,0.00021372,2]
[378359694,1754837448870,-460.0,0.00021534,2]
[378359696,1754837448879,-460.0,0.00021534,2]
[378359698,1754837448889,-460.0,0.00021535,2]
[378359700,1754837448898,-460.0,0.00021535,2]
[378359702,1754837448908,-521.05,0.00021535,2]
[378359704,1754837448918,-1529.48,0.00021535,2]
[378359706,1754837448928,-2034.57,0.00021535,2]
[378359708,1754837448937,-460.0,0.00021535,2]
[378359710,1754837448946,-460.0,0.00021535,2]
[378359712,1754837448955,-355.60092666,0.00021535,2]
[378359714,1754837448965,-150.62,0.00021535,2]
[378359716,1754837448975,-460.0,0.00021535,2]
[378359718,1754837448984,-460.0,0.00021535,2]
[378359720,1754837448993,-645.18,0.00021535,2]
[378359722,1754837449003,-2217.6,0.00021536,2]
[378359724,1754837449012,-1247.95,0.00021536,2]
[378359726,1754837449022,-669.16,0.00021536,2]
[378359728,1754837449031,-594.79,0.00021536,2]
[378359730,1754837449040,-1534.17,0.00021536,2]
[378359732,1754837449049,-1237.82,0.00021536,2]
[378359734,1754837449059,-460.0,0.00021537,2]
[378359736,1754837449068,-460.0,0.00021537,2]
[378359738,1754837449078,-460.0,0.00021537,2]
[378359740,1754837449087,-460.0,0.00021537,2]
[378359742,1754837449096,-460.0,0.00021537,2]
[378359743,1754837449108,-347.14699166,0.00021537,2]
[378359746,1754837449118,-310.03574645,0.00021537,2]
[378359748,1754837449127,-547.74,0.00021537,2]
[378359750,1754837449137,-460.0,0.00021537,2]
[378359752,1754837449146,-483.71575989,0.00021537,2]
[378359754,1754837449155,-460.0,0.00021537,2]
[378359756,1754837449165,-464.87808526,0.00021537,2]
[378359758,1754837449174,-460.0,0.00021537,2]
[378359760,1754837449184,-261.19181688,0.00021537,2]
[378359761,1754837449193,-460.0,0.00021537,2]
[378359764,1754837449202,-460.0,0.00021537,2]
[378359765,1754837449212,-460.0,0.00021537,2]
[378359767,1754837449222,-460.0,0.00021537,2]
[378359769,1754837449231,-460.0,0.00021537,2]
[378359772,1754837449241,-460.0,0.00021537,2]
[378359774,1754837449250,-500.0,0.00021622,2]
[378359776,1754837449260,-460.0,0.00021623,2]
[378359778,1754837449269,-460.0,0.00021623,2]
[378359780,1754837449279,-460.0,0.00021623,2]
[378359782,1754837449289,-460.0,0.00021623,2]
[378359784,1754837449297,-460.0,0.00021623,2]
[378359786,1754837449307,-211.75552178,0.00021623,2]
[378359788,1754837449316,-460.0,0.00021623,2]
[378359790,1754837449325,-460.0,0.00021623,2]
[378359791,1754837449335,-460.0,0.00021623,2]
[378359793,1754837449344,-460.0,0.00021623,2]
[378359795,1754837449354,-361.88763169,0.00021623,2]
[378359797,1754837449363,-460.0,0.00021623,2]
[378359799,1754837449373,-460.0,0.00021623,2]
[378359801,1754837449383,-460.0,0.00021623,2]
[378359803,1754837449393,-454.65855995,0.00021623,2]
[378359806,1754837449402,-460.0,0.00021623,2]
[378359807,1754837449412,-460.0,0.00021623,2]
[378359810,1754837449422,-460.0,0.00021623,2]
[378359812,1754837449431,-460.0,0.00021623,2]
[378359814,1754837449441,-460.0,0.00021623,2]
[378359815,1754837449451,-467.47258127,0.00021623,2]
[378359817,1754837449461,-460.0,0.00021623,2]
[378359819,1754837449471,-460.0,0.00021623,2]
[378359822,1754837449481,-372.92925353,0.00021623,2]
[378359823,1754837449491,-460.0,0.00021623,2]
[378359825,1754837449500,-460.0,0.00021623,2]
[378359828,1754837449510,-460.0,0.00021623,2]
[378359829,1754837449519,-460.0,0.00021623,2]
[378359831,1754837449529,-460.0,0.00021623,2]
[378359833,1754837449539,-460.0,0.00021623,2]
[378359835,1754837449548,-460.0,0.00021623,2]
[378359838,1754837449559,-460.0,0.00021623,2]
[378359839,1754837449569,-465.82,0.00021623,2]
[378359841,1754837449578,-744.56,0.00021623,2]
[378359843,1754837449587,-526.01,0.00021623,2]
[378359845,1754837449597,-460.0,0.00021634,2]
[378359847,1754837449606,-903.81,0.00021636,2]
[378359849,1754837449617,-460.0,0.00021637,2]
[378359852,1754837449628,-460.0,0.00021637,2]
[378359854,1754837449637,-460.0,0.00021637,2]
[378359855,1754837449647,-3079.07,0.00021637,2]
[378359857,1754837449656,-629.31,0.00021637,2]
[378359859,1754837449666,-1082.06,0.00021637,2]
[378359861,1754837449675,-153.26758989,0.00021686,2]
[378359863,1754837449685,-460.0,0.00021808,2]
[378359865,1754837449695,-438.81,0.00021809,2]
[378359867,1754837449704,-460.0,0.00021809,2]
[378359869,1754837449715,-521.05,0.00021809,2]
[378359872,1754837449724,-1529.48,0.00021809,2]
[378359873,1754837449734,-2034.57,0.00021809,2]
[378359875,1754837449743,-460.0,0.00021809,2]
[378359877,1754837449753,-307.26715428,0.00021809,2]
[378359879,1754837449762,-426.71379657,0.00021809,2]
[378359882,1754837449772,-645.18,0.00021809,2]
[378359883,1754837449781,-2217.6,0.0002181,2]
[378359885,1754837449790,-1247.95,0.0002181,2]
[378359887,1754837449800,-669.16,0.0002181,2]
[378359889,1754837449810,-594.79,0.0002181,2]
[378359891,1754837449820,-1534.17,0.0002181,2]
[378359893,1754837449831,-1237.82,0.0002181,2]
[378359895,1754837449841,-460.0,0.00021811,2]
[378359897,1754837449852,-460.0,0.00021811,2]
[378359899,1754837449862,-421.90061493,0.00021811,2]
[378359901,1754837449871,-497.42,0.00021811,2]
[378359903,1754837449881,-460.0,0.00021811,2]
[378359905,1754837449892,-508.5197744,0.00021811,2]
[378359907,1754837449902,-460.0,0.00021811,2]
[378359909,1754837449912,-460.0,0.00021811,2]
[378359911,1754837449923,-460.0,0.00021811,2]
[378359914,1754837449935,-505.77094558,0.00021811,2]
[378359916,1754837449945,-460.0,0.00021811,2]
[378359918,1754837449955,-214.05534729,0.00021811,2]
[378359920,1754837449968,-460.0,0.00021811,2]
[378359921,1754837449977,-2000.0,0.00021816,2]
[378359924,1754837449987,-1862.84255123,0.00021847,2]
[378359925,1754837449997,-500.0,0.00021896,2]
[378359937,1754837450098,-460.0,0.00021897,2]
[378359939,1754837450108,-460.0,0.00021897,2]
[378359941,1754837450118,-460.0,0.00021897,2]
[378359943,1754837450127,-460.0,0.00021897,2]
[378359945,1754837450137,-460.0,0.00021897,2]
[378359947,1754837450146,-460.0,0.00021897,2]
[378359949,1754837450155,-460.0,0.00021897,2]
[378359951,1754837450164,-460.0,0.00021897,2]
[378359953,1754837450174,-460.0,0.00021897,2]
[378359955,1754837450183,-460.0,0.00021897,2]
[378359957,1754837450192,-460.0,0.00021897,2]
[378359959,1754837450201,-460.0,0.00021897,2]
[378359961,1754837450211,-460.0,0.00021897,2]
[378359963,1754837450222,-460.0,0.00021897,2]
[378359965,1754837450231,-460.0,0.00021897,2]
[378359967,1754837450240,-460.0,0.00021897,2]
[378359970,1754837450249,-465.82,0.00021897,2]
[378359971,1754837450259,-744.56,0.00021897,2]
[378359973,1754837450268,-526.01,0.00021897,2]
[378359975,1754837450278,-151.0,0.000219,3]
[378359978,1754837450288,-460.0,0.00021909,2]
[378359980,1754837450298,-460.0,0.00021909,2]
[378359981,1754837450308,-460.0,0.00021909,2]
[378359983,1754837450317,-460.0,0.00021909,2]
[378359985,1754837450326,-464.8035524,0.00021909,2]
[378359987,1754837450336,-464.02313197,0.00021909,2]
[378359989,1754837450347,-460.0,0.00021909,2]
[378359991,1754837450356,-903.81,0.0002191,2]
[378359994,1754837450366,-232.30327585,0.00021911,2]
[378359995,1754837450376,-460.0,0.00021911,2]
[378359998,1754837450386,-460.0,0.00021911,2]
[378359999,1754837450395,-3079.07,0.00021911,2]
[378360001,1754837450404,-629.31,0.00021911,2]
[378360004,1754837450415,-1082.06,0.00021911,2]
[378360006,1754837450425,-160.0,0.00021912,2]
[378360008,1754837450434,-500.0,0.00021917,2]
[378360009,1754837450444,-500.0,0.00021917,2]
[378360012,1754837450455,-500.0,0.00021917,2]
[378360013,1754837450466,-500.0,0.00021917,2]
[378360015,1754837450476,-500.0,0.00021917,2]
[378360017,1754837450485,-500.0,0.00021917,2]
[378360019,1754837450494,-500.0,0.00021917,2]
[378360021,1754837450503,-6481.11,0.00021917,2]
[378360023,1754837450512,-500.0,0.0002192,2]
[378360025,1754837450521,-500.0,0.00021973,2]
[378360027,1754837450531,-500.21872809,0.00021973,2]
[378360029,1754837450540,-500.0,0.00021973,2]
[378360031,1754837450549,-500.0,0.00021973,2]
[378360033,1754837450559,-500.0,0.00021973,2]
[378360035,1754837450568,-500.0,0.00021973,2]
[378360037,1754837450577,-500.0,0.00021973,2]
[378360039,1754837450587,-500.0,0.00021973,2]
[378360041,1754837450596,-500.0,0.00021973,2]
[378360043,1754837450605,-150.0,0.00021973,2]
[378360045,1754837450615,-500.0,0.00021973,2]
[378360047,1754837450627,-500.0,0.00021973,2]
[378360049,1754837450637,-500.0,0.00021973,2]
[378360051,1754837450646,-500.0,0.00021973,2]
[378360053,1754837450656,-200.0,0.00021973,2]
[378360055,1754837450667,-500.0,0.00021973,2]
[378360057,1754837450676,-500.0,0.00021973,2]
[378360060,1754837450685,-500.0,0.00021973,2]
[378360061,1754837450695,-500.0,0.00021973,2]
[378360063,1754837450704,-500.0,0.00021973,2]
[378360066,1754837450715,-500.0,0.00021973,2]
[378360067,1754837450725,-7298.77655191,0.00022,7]
[378360085,1754837450878,-369.92818069,0.00022,7]
[378360125,1754837451253,-384.15999998,0.00020163,2]
[378360127,1754837451264,-75.84000002,0.00020163,2]
[378360129,1754837451274,-460.0,0.00020165,2]
[378360130,1754837451283,-14.89773189,0.00020165,2]
[378360131,1754837451481,-445.10226811,0.00020165,2]
[378360132,1754837451491,-75.79493309,0.00020165,2]
[378360133,1754837451503,-384.20506691,0.00020165,2]
[378360134,1754837451512,-460.0,0.00020165,2]
[378360135,1754837451522,-460.0,0.00020165,2]
[378360137,1754837451532,-460.0,0.00020167,2]
[378360139,1754837451541,-460.0,0.00020267,2]
[378360141,1754837451551,-460.0,0.00020267,2]
[378360143,1754837451561,-460.0,0.00020439,2]
[378360145,1754837451571,-460.0,0.00020439,2]
[378360147,1754837451580,-460.0,0.00020439,2]
[378360149,1754837451589,-460.0,0.00020439,2]
[378360151,1754837451598,-460.0,0.00020439,2]
[378360153,1754837451608,-460.0,0.00020441,2]
[378360155,1754837451621,-460.0,0.00020713,2]
[378360157,1754837451630,-460.0,0.00020715,2]
[378360158,1754837451640,-3744.10933129,0.00022,7]
[378360161,1754837451655,-2055.48713809,0.00022,7]
[378361080,1754837679624,601.6439811,0.00019709,2]
[378361081,1754837699269,150.0,0.00024153,30]
[378361084,1754837915954,1338.74180985,0.00019166,2]
[378361085,1754837915980,20000.0,0.00019166,2]
[378361086,1754837916006,3561.25819015,0.00019166,2]
[378361087,1754837933076,1027.0,0.00019901,2]
[378361090,1754837980824,401.0959874,0.00019709,2]
[378361091,1754838050696,4963.30963922,0.00026493,30]
[378361101,1754838180192,1003.4,0.00030137,120]
[378361102,1754838193218,200.62986151,0.000199,2]
[378361103,1754838282165,267.39732494,0.0001971,2]
[378361106,1754838397198,323.703051,0.00013699,2]
[378361108,1754838537067,1000.0,0.0003,120]
[378361110,1754838548219,-153.26758989,0.00020063,2]
[378361111,1754838548245,-300.0,0.00020162,2]
[378361112,1754838548270,-473.27,0.00020162,2]
[378361113,1754838548293,-1189.0,0.00020162,2]
[378361114,1754838548320,-460.0,0.00020162,2]
[378361115,1754838548344,-460.0,0.00020162,2]
[378361116,1754838548368,-460.0,0.00020162,2]
[378361117,1754838548393,-1241.14,0.00020162,2]
[378361118,1754838548416,-460.0,0.00020162,2]
[378361119,1754838548440,-599.90317827,0.00020162,2]
[378361120,1754838548463,-460.0,0.00020162,2]
[378361121,1754838548486,-395.33549903,0.00020162,2]
[378361123,1754838562579,191.284544,0.00019178,2]
[378361124,1754838604286,1200.0,0.0003,120]
[378361125,1754838623602,1000.0,0.0003,120]
[378361126,1754838629652,301.37106271,0.0003013,120]
[378361182,1754838632935,-64.66450097,0.00020162,2]
[378361184,1754838632945,-461.76342675,0.00020162,2]
[378361186,1754838632954,-460.0,0.00020162,2]
[378361188,1754838632964,-460.0,0.00020162,2]
[378361190,1754838632973,-460.0,0.00020162,2]
[378361192,1754838632983,-300.0,0.00020162,2]
[378361194,1754838632994,-460.0,0.00020162,2]
[378361196,1754838633004,-460.0,0.00020162,2]
[378361198,1754838633015,-460.0,0.00020163,2]
[378361200,1754838633027,-421.90061493,0.00020163,2]
[378361202,1754838633039,-497.42,0.00020163,2]
[378361204,1754838633050,-460.0,0.00020163,2]
[378361205,1754838633062,-460.0,0.00020163,2]
[378361206,1754838633076,-460.0,0.00020163,2]
[378361207,1754838633086,-460.0,0.00020163,2]
[378361208,1754838633096,-460.0,0.00020163,2]
[378361209,1754838633108,-460.0,0.00020163,2]
[378361210,1754838633118,-315.51174705,0.00020163,2]
[378361211,1754838633128,-460.0,0.00020163,2]
[378361212,1754838633139,-460.0,0.00020163,2]
[378361213,1754838633150,-508.5197744,0.00020163,2]
[378361214,1754838633160,-460.0,0.00020163,2]
[378361215,1754838633171,-460.0,0.00020163,2]
[378361216,1754838633180,-460.0,0.00020163,2]
[378361217,1754838633188,-460.0,0.00020163,2]
[378361218,1754838633195,-460.0,0.00020163,2]
[378361219,1754838633203,-460.0,0.00020163,2]
[378361220,1754838633213,-460.0,0.00020163,2]
[378361221,1754838633224,-406.57162665,0.00020163,2]
[378361222,1754838633235,-460.0,0.00020163,2]
[378361224,1754838633250,-460.0,0.00020163,2]
[378361226,1754838633260,-460.0,0.00020163,2]
[378361228,1754838633271,-460.0,0.00020163,2]
[378361230,1754838633281,-500.0,0.00020163,2]
[378361232,1754838633292,-174.76632904,0.00020163,2]
[378361234,1754838633302,-148.89301827,0.00020163,2]
[378361745,1754838638887,-1000.0,0.0002,2]
[378361747,1754838638898,-351.10698173,0.00020163,2]
[378361749,1754838638908,-642.10341982,0.00020163,2]
[378361751,1754838638918,-500.0,0.00020163,2]
[378361753,1754838638928,-460.0,0.00020163,2]
[378361755,1754838638938,-460.0,0.00020163,2]
[378361757,1754838638947,-465.27086061,0.00020163,2]
[378361759,1754838638957,-460.0,0.00020163,2]
[378361761,1754838638967,-582.0,0.00020163,2]
[378361763,1754838638976,-460.0,0.00020163,2]
[378361765,1754838638986,-460.0,0.00020163,2]
[378361767,1754838638998,-460.0,0.00020163,2]
[378361769,1754838639008,-460.0,0.00020163,2]
[378361771,1754838639019,-460.0,0.00020163,2]
[378361773,1754838639030,-1.69756314,0.00020163,2]
[378361775,1754838639042,-321.12852336,0.00020163,2]
[378361777,1754838639052,-460.0,0.00020163,2]
[378361779,1754838639063,-460.0,0.00020163,2]
[378361781,1754838639072,-463.23397234,0.00020163,2]
[378361784,1754838639086,-466.28,0.00020163,2]
[378361786,1754838639096,-460.0,0.00020163,2]
[378361788,1754838639107,-460.0,0.00020163,2]
[378361790,1754838639116,-460.0,0.00020163,2]
[378361792,1754838639125,-460.0,0.00020163,2]
[378361794,1754838639135,-460.0,0.00020163,2]
[378361796,1754838639145,-500.0,0.00020163,2]
[378361798,1754838639155,-500.0,0.00020163,2]
[378361800,1754838639165,-460.0,0.00020163,2]
[378361802,1754838639174,-460.0,0.00020163,2]
[378361804,1754838639183,-460.0,0.00020163,2]
[378361806,1754838639193,-464.11522152,0.00020163,2]
[378361808,1754838639202,-316.78379014,0.00020163,2]
[378361811,1754838639224,-143.21620986,0.00020163,2]
[378361813,1754838639234,-460.0,0.00020163,2]
[378361815,1754838639248,-462.84417309,0.00020163,2]
[378361817,1754838639258,-460.0,0.00020163,2]
[378361819,1754838639268,-460.0,0.00020163,2]
[378361821,1754838639277,-460.0,0.00020163,2]
[378361823,1754838639287,-460.0,0.00020163,2]
[378361825,1754838639296,-464.64929552,0.00020163,2]
[378361827,1754838639306,-460.0,0.00020163,2]
[378361829,1754838639315,-460.0,0.00020163,2]
[378361831,1754838639328,-460.0,0.00020163,2]
[378361833,1754838639338,-460.0,0.00020163,2]
[378361835,1754838639349,-460.0,0.00020163,2]
[378361837,1754838639359,-460.0,0.00020163,2]
[378361839,1754838639368,-1834.48,0.00020163,2]
[378361841,1754838639378,-307.26715428,0.00020163,2]
[378361843,1754838639388,-460.0,0.00020163,2]
[378361845,1754838639397,-460.0,0.00020163,2]
[378361847,1754838639407,-277.78772527,0.00020163,2]
[378361850,1754838639416,-460.0,0.00020163,2]
[378361851,1754838639426,-460.0,0.00020163,2]
[378361854,1754838639435,-460.0,0.00020163,2]
[378361856,1754838639445,-460.0,0.00020163,2]
[378361858,1754838639455,-460.0,0.00020163,2]
[378361860,1754838639464,-469.95112179,0.00020163,2]
[378361862,1754838639474,-460.0,0.00020163,2]
[378361864,1754838639484,-460.0,0.00020163,2]
[378361866,1754838639493,-460.0,0.00020163,2]
[378361868,1754838639507,-507.94,0.00020163,2]
[378361870,1754838639516,-460.0,0.00020163,2]
[378361872,1754838639526,-460.0,0.00020163,2]
[378361874,1754838639535,-460.0,0.00020163,2]
[378361876,1754838639547,-458.31890278,0.00020163,2]
[378361878,1754838639556,-5848.43204941,0.00020163,2]
[378361880,1754838639566,-460.0,0.00020164,2]
[378361882,1754838639576,-460.0,0.00020164,2]
[378361884,1754838639585,-460.0,0.00020164,2]
[378361886,1754838639595,-460.0,0.00020164,2]
[378361888,1754838639604,-460.0,0.00020164,2]
[378361890,1754838639614,-460.0,0.00020164,2]
[378361892,1754838639624,-460.0,0.00020164,2]
[378361894,1754838639633,-462.9242016,0.00020164,2]
[378361896,1754838639642,-460.0,0.00020164,2]
[378361898,1754838639651,-460.0,0.00020164,2]
[378361900,1754838639661,-460.0,0.00020164,2]
[378361902,1754838639670,-460.0,0.00020164,2]
[378361904,1754838639680,-460.0,0.00020164,2]
[378361906,1754838639689,-460.0,0.00020164,2]
[378361908,1754838639699,-460.0,0.00020164,2]
[378361910,1754838639708,-460.0,0.00020164,2]
[378361912,1754838639718,-460.0,0.00020164,2]
[378361914,1754838639727,-462.97633861,0.00020164,2]
[378361916,1754838639736,-460.0,0.00020164,2]
[378361918,1754838639748,-460.0,0.00020164,2]
[378361920,1754838639758,-460.0,0.00020164,2]
[378361922,1754838639768,-473.67109106,0.00020164,2]
[378361924,1754838639778,-505.77094558,0.00020164,2]
[378361926,1754838639787,-460.07758548,0.00020164,2]
[378361928,1754838639796,-474.47688011,0.00020164,2]
[378361930,1754838639806,-460.0,0.00020164,2]
[378361932,1754838639816,-460.0,0.00020164,2]
[378361934,1754838639826,-460.0,0.00020164,2]
[378361936,1754838639836,-460.0,0.00020164,2]
[378361938,1754838639847,-460.0,0.00020164,2]
[378361940,1754838639856,-460.0,0.00020164,2]
[378361942,1754838639867,-460.0,0.00020164,2]
[378361944,1754838639878,-460.0,0.00020164,2]
[378361946,1754838639887,-460.0,0.00020164,2]
[378361948,1754838639897,-234.55599526,0.00020164,2]
[378361950,1754838639907,-460.0,0.00020164,2]
[378361952,1754838639917,-460.0,0.00020164,2]
[378361954,1754838639927,-460.0,0.00020164,2]
[378361956,1754838639934,-460.0,0.00020164,2]
[378361958,1754838639943,-463.51262276,0.00020164,2]
[378361960,1754838639952,-466.31340937,0.00020164,2]
[378361962,1754838639962,-460.0,0.00020164,2]
[378361964,1754838639972,-462.62062111,0.00020164,2]
[378361966,1754838639983,-464.26003249,0.00020164,2]
[378361968,1754838639993,-460.0,0.00020164,2]
[378361970,1754838640006,-460.0,0.00020164,2]
[378361972,1754838640016,-462.60170856,0.00020164,2]
[378361974,1754838640026,-535.59830318,0.00020164,2]
[378361976,1754838640038,-1004.18038284,0.00020164,2]
[378361978,1754838640048,-460.0,0.00020164,2]
[378361980,1754838640058,-465.71798709,0.00020164,2]
[378361982,1754838640068,-460.0,0.00020164,2]
[378361984,1754838640079,-460.0,0.00020164,2]
[378361986,1754838640089,-460.0,0.00020164,2]
[378361988,1754838640098,-463.06382047,0.00020164,2]
[378361990,1754838640109,-467.47747727,0.00020164,2]
[378361992,1754838640119,-464.25633944,0.00020164,2]
[378361994,1754838640128,-460.0,0.00020164,2]
[378361996,1754838640137,-460.0,0.00020164,2]
[378361998,1754838640147,-214.05534729,0.00020164,2]
[378362000,1754838640157,-460.0,0.00020164,2]
[378362017,1754838640309,-466.74708805,0.00020164,2]
[378362019,1754838640326,-462.97797273,0.00020164,2]
[378362021,1754838640336,-460.0,0.00020164,2]
[378362023,1754838640345,-460.0,0.00020164,2]
[378362025,1754838640355,-460.0,0.00020164,2]
[378362027,1754838640365,-500.0,0.00020164,2]
[378362029,1754838640374,-460.0,0.00020164,2]
[378362031,1754838640383,-460.0,0.00020164,2]
[378362033,1754838640393,-460.0,0.00020164,2]
[378362036,1754838640409,-460.0,0.00020164,2]
[378362038,1754838640424,-460.0,0.00020164,2]
[378362041,1754838640434,-460.0,0.00020164,2]
[378362043,1754838640445,-460.0,0.00020164,2]
[378362045,1754838640455,-460.0,0.00020164,2]
[378362047,1754838640465,-460.0,0.00020164,2]
[378362049,1754838640476,-483.89,0.00020164,2]
[378362051,1754838640486,-690.87538569,0.00020164,2]
[378362084,1754838640822,-460.0,0.00020163,2]
[378362086,1754838640833,-9.47107365,0.00020164,2]
[378362091,1754838640888,-266.35354066,0.00020164,2]
[378362093,1754838640899,-460.0,0.00020164,2]
[378362095,1754838640909,-460.0,0.00020164,2]
[378362097,1754838640919,-992.81,0.00020164,2]
[378362098,1754838640929,-462.64349282,0.00020164,2]
[378362100,1754838640939,-460.0,0.00020164,2]
[378362102,1754838640949,-460.0,0.00020164,2]
[378362104,1754838640959,-460.0,0.00020164,2]
[378362106,1754838640968,-460.0,0.00020164,2]
[378362107,1754838640978,-460.0,0.00020164,2]
[378362109,1754838640988,-460.0,0.00020164,2]
[378362111,1754838641002,-500.0,0.00020164,2]
[378362113,1754838641012,-460.0,0.00020164,2]
[378362115,1754838641025,-1150.63,0.00020164,2]
[378362116,1754838641041,-460.0,0.00020164,2]
[378362118,1754838641054,-460.0,0.00020164,2]
[378362120,1754838641064,-460.0,0.00020164,2]
[378362122,1754838641076,-537.54,0.00020164,2]
[378362123,1754838641086,-460.0,0.00020164,2]
[378362125,1754838641095,-460.0,0.00020164,2]
[378362127,1754838641105,-460.98542935,0.00020164,2]
[378362129,1754838641116,-460.0,0.00020164,2]
[378362131,1754838641125,-461.53,0.00020164,2]
[378362132,1754838641135,-460.0,0.00020164,2]
[378362134,1754838641144,-460.0,0.00020164,2]
[378362136,1754838641154,-460.0,0.00020164,2]
[378362138,1754838641164,-460.0,0.00020164,2]
[378362139,1754838641174,-460.0,0.00020165,2]
[378362141,1754838641183,-460.0,0.00020165,2]
[378362143,1754838641192,-460.0,0.00020165,2]
[378362145,1754838641202,-232.30327585,0.00020165,2]
[378362147,1754838641212,-460.0,0.00020165,2]
[378362148,1754838641221,-460.0,0.00020165,2]
[378362150,1754838641230,-460.0,0.00020165,2]
[378362152,1754838641240,-460.0,0.00020165,2]
[378362154,1754838641253,-460.0,0.00020165,2]
[378362156,1754838641263,-460.0,0.00020165,2]
[378362158,1754838641273,-460.0,0.00020165,2]
[378362160,1754838641283,-460.0,0.00020165,2]
[378362161,1754838641292,-460.0,0.00020165,2]
[378362163,1754838641302,-479.16,0.00020165,2]
[378362165,1754838641312,-460.0,0.00020165,2]
[378362167,1754838641321,-2494.34,0.00020165,2]